[Event "One Short Week GM-A 12-2024"]
[Site "Budapest"]
[Date "2024.12.16"]
[Round "1.1"]
[White "Zverev, Lev"]
[Black "Paszewski, Mateusz"]
[Result "0-1"]
[ECO "D37"]
[WhiteElo "2441"]
[BlackElo "2344"]
[Annotator "TA"]
[PlyCount "84"]
[EventDate "2024.12.15"]
[EventType "tourn"]
[EventCountry "HUN"]
[SourceTitle "playchess.com"]
[Source "ChessBase"]
[SourceQuality "1"]
[TimeControl "5400+30"]

{[%evp 9,84,35,36,36,40,45,54,50,45,31,40,41,52,44,41,19,27,20,29,-5,11,0,34,31,46,49,49,36,39,46,60,39,42,32,58,34,35,-70,-52,-362,-376,-379,-368,-423,-416,-531,-512,-504,-470,-466,-360,-349,-325,-363,-351,-371,-365,-376,-372,-370,-338,-443,-267,-259,0,-463,-451,-527,-514,-814,-792,-1212,-1173,-1657,-1555,-969,-969]} 1. d4 {[%emt 0:00:03]} d5 {[%emt 0:00:33]} 2. c4 {[%emt 0:00:06]} e6 {[%emt 0:00:29]} 3. Nc3 {[%emt 0:01:24]} Nf6 {[%emt 0:00:13]} 4. Nf3 {[%emt 0:00:05]} dxc4 {[%emt 0:00:47]} 5. e4 {[%emt 0:01:43][%cal Be2e4,Be4e5][%mdl 32]} b5 {[%emt 0:00:37]} 6. e5 {[%emt 0:00:32]} Nd5 {[%emt 0:00:05]} 7. Nxb5 {[%emt 0:00:07]} Nb6 {[%emt 0:00:05]} 8. Be2 {[%emt 0:03:00] White is slightly better.} Nc6 {[%emt 0:01:26]} 9. O-O {[%emt 0:03:04]} Be7 {[%emt 0:00:36]} 10. Nc3 {[%emt 0:11:44]} O-O {[%emt 0:05:58]} 11. Be3 {[%emt 0:01:29]} Rb8 {[%emt 0:08:08]} 12. a3 {[%emt 0:00:49]} Na5 {[%emt 0:13:39]} 13. Qc2 {[%emt 0:03:33]} Bb7 {[%emt 0:02:40]} 14. Ne4 {[%emt 0:11:55]} Bc6 {[%emt 0:39:11]} 15. Nfd2 {[%emt 0:06:09]} (15. Nfg5 {keeps more tension.} g6 16. Rab1 Qd5 17. Bf3) 15... Nd5 {[%emt 0:03:39]} 16. Nxc4 {[%emt 0:04:50]} (16. Rac1 {with more complications.} Qc8 17. Rb1 Qb7 18. Bg5) 16... Nxc4 {[%emt 0:01:46]} 17. Bxc4 {[%emt 0:00:09]} Nxe3 {[%emt 0:03:36]} 18. fxe3 {[%emt 0:00:05]} Bxe4 {[%emt 0:01:13]} 19. Qxe4 {[%emt 0:00:07]} Rxb2 {[%emt 0:00:13]} 20. Rf3 {[%emt 0:03:01]} g6 {[%emt 0:02:52]} 21. Raf1 {[%emt 0:03:22][%cal Of3f7] Strongly threatening Rxf7!} Kg7 {[%emt 0:02:02] [#]} 22. h4 $1 {[%emt 0:08:07][%cal Oh4h5]} Bxh4 {[%emt 0:06:43]} 23. Kh1 {[%emt 0:18:56]} (23. Bxe6 $14 Bf2+ 24. R1xf2 (24. R3xf2 Rxf2 25. Rxf2 fxe6 $14) 24... Rxf2 25. Rxf2 fxe6 26. Qc6) 23... Be7 $15 {[%emt 0:00:47]} 24. Rf6 $2 {[%emt 0:05:34][%mdl 8192]} Bxf6 $19 {[%emt 0:03:08]} (24... Bxa3 25. Qf4 Qe8 26. Rf3 $11) 25. exf6+ {[%emt 0:00:02]} Kh8 {[%emt 0:00:05]} 26. Rf3 {[%emt 0:00:46]} Qd6 {[%emt 0:01:03]} 27. Rh3 {[%emt 0:03:17]} Rfb8 {[%emt 0:00:21] ( -> ...Rb1+)} (27... Qxa3 28. Qh4 h5 29. Qg5 Rb1+ 30. Kh2 Qd6+ 31. g3 Rb2+ 32. Kg1 Rb1+ 33. Kg2) 28. Bf1 {[%emt 0:00:59]} Rf2 {[%emt 0:01:08]} (28... Qxa3 29. Qh4 h5 30. Qg5 $16) 29. Kg1 {[%emt 0:01:02]} Rxf6 {[%emt 0:00:49]} 30. Qh4 {[%emt 0:00:01][%csl Gh3][%cal Rh4h7] [#]} Rxf1+ $1 {[%emt 0:00:19]} 31. Kxf1 {[%emt 0:00:01][%mdl 4096] Endgame. KQR-KQR} h5 {[%emt 0:00:32]} (31... Qxa3 32. Qxh7#) 32. Qf6+ {[%emt 0:00:19]} Kg8 {[%emt 0:00:07]} 33. Rf3 {[%emt 0:00:04]} Qd7 {[%emt 0:01:07]} (33... Qxa3 34. Qxf7+ Kh8 35. Kg1 $11 (35. Qxe6 Rf8 $11) (35. Qxg6 Qa1+ 36. Kf2 Qb2+ 37. Kg3 Rg8 $11) (35. Qxc7 Rb1+ 36. Kf2 Qb2+ 37. Kg3 Qb8 $11)) 34. Kg1 {[%emt 0:01:24]} Rb3 {[%emt 0:00:53]} 35. Kh2 {[%emt 0:03:24]} Qd6+ {[%emt 0:00:24]} 36. Kh3 {[%emt 0:01:12] [#]} Qd7 {[%emt 0:00:03]} (36... Rxa3 $2 37. Qxf7+ Kh8 38. Qxg6 $18) ({Black should try} 36... Qf8 $1 $19 37. a4 Ra3) 37. Kg3 $2 {[%emt 0:01:35][%mdl 8192]} (37. Kh2 $11 {and White has nothing to worry.} Rxa3 38. Kh3) 37... Rxa3 {[%emt 0:00:30] Black is clearly winning.} 38. Kh4 {[%emt 0:00:07]} Ra2 {[%emt 0:01:07]} 39. Kg5 {[%emt 0:00:08]} (39. Kg3 $142) 39... Qe8 {[%emt 0:00:30]} (39... Rxg2+ 40. Kh6 Kf8 41. Qg7+ Ke8 42. Qg8+ Ke7 43. Rxf7+ (43. Qxf7+ Kd6 $11) 43... Kd6 44. Qf8+ (44. Rxd7+ Kxd7 45. d5 Re2 $18) 44... Kd5 45. Rxd7+) 40. g3 {[%emt 0:00:59]} Ra5+ {[%emt 0:00:10]} 41. Kh4 {[%emt 0:00:07]} Rf5 {[%emt 0:00:42]} 42. Rxf5 {[%emt 0:00:05]} exf5 {[%emt 0:00:01] Weighted Error Value: White=1.00/Black=0.22 (precise) .  Loses game:     	White=2     	---        Missed win:     	---       	Black=1      Mistake:       	White=2     	---        Inaccurate:     	White=3     	Black=3      OK:         	White=7     	Black=13     Best:        	White=2     	Black=6      Brilliant:      	White=1     	Black=1} 0-1

[Event "One Short Week GM-A 12-2024"]
[Site "Budapest"]
[Date "2024.12.16"]
[Round "1.2"]
[White "Aczel, Gergely"]
[Black "Sklokin, Sergey"]
[Result "1-0"]
[ECO "D35"]
[WhiteElo "2485"]
[BlackElo "2329"]
[Annotator "TA"]
[PlyCount "79"]
[EventDate "2024.12.15"]
[EventType "tourn"]
[EventCountry "HUN"]
[SourceTitle "playchess.com"]
[Source "ChessBase"]
[SourceQuality "1"]
[TimeControl "5400+30"]

{[%evp 15,79,16,16,13,18,10,13,0,13,0,22,24,24,31,37,57,43,50,77,49,56,51,103,108,234,222,193,232,233,233,423,408,410,0,83,81,101,85,87,87,81,51,247,166,164,64,54,51,51,66,43,67,400,336,2223,2235,1985,2120,2207,2380,2371,2289,2372,2333,2312,2157]} 1. d4 {[%emt 0:00:03]} d5 {[%emt 0:00:09]} 2. c4 {[%emt 0:00:05]} e6 {[%emt 0:00:03]} 3. Nc3 {[%emt 0:00:04]} Nf6 {[%emt 0:00:09]} 4. cxd5 {[%emt 0:00:05]} exd5 {[%emt 0:00:05]} 5. Bg5 {[%emt 0:00:04]} c6 {[%emt 0:00:10]} 6. e3 {[%emt 0:00:06]} h6 {[%emt 0:00:06]} 7. Bh4 {[%emt 0:00:03]} Be7 {[%emt 0:00:06]} 8. Bd3 {[%emt 0:00:05]} O-O {[%emt 0:00:23]} 9. Nge2 {[%emt 0:00:04]} Re8 {[%emt 0:00:09]} 10. O-O {[%emt 0:00:07]} Nbd7 {[%emt 0:00:03][%cal Bb8d7,Bd7f8,Bf8e6][%mdl 32]} 11. h3 {[%emt 0:00:55] The position is equal.} Nf8 {[%emt 0:01:39]} 12. Qc2 {[%emt 0:07:06]} Ne6 {[%emt 0:04:38]} 13. Bg3 {[%emt 0:00:54]} Bd6 {[%emt 0:09:40]} 14. Be5 {[%emt 0:03:28]} Bxe5 {[%emt 0:06:37]} 15. dxe5 {[%emt 0:00:10]} Nd7 {[%emt 0:00:09]} 16. f4 {[%emt 0:00:10]} Ndc5 {[%emt 0:11:54]} 17. Rad1 {[%emt 0:11:00]} Nxd3 {[%emt 0:04:08]} 18. Qxd3 {[%emt 0:00:11]} b6 {[%emt 0:09:49]} ({Black should try} 18... b5 $14) 19. e4 $16 {[%emt 0:09:26]} dxe4 {[%emt 0:01:49]} (19... Nc7 $16 {keeps fighting.} 20. Qg3 (20. exd5 Ba6 $16) 20... Ba6) 20. Qg3 $1 $18 {[%emt 0:33:52]} (20. Qxe4 $6 Qh4 $16) (20. Nxe4 Qxd3 21. Rxd3 Ba6 $15) 20... Qe7 {[%emt 0:01:49]} 21. Nxe4 {[%emt 0:00:08]} Ba6 {[%emt 0:06:55]} 22. Rd7 $1 {[%emt 0:01:55]} (22. Nf6+ Kf8 23. f5 (23. Nxe8 Bxe2 24. Nd6 Bxd1 $14) 23... Bxe2) 22... Qb4 {[%emt 0:00:25]} (22... Qf8) 23. Nf6+ {[%emt 0:00:21]} Kf8 {[%emt 0:00:44][%cal Og7f6]} 24. Nh7+ {[%emt 0:13:55] Excellent horsemanship.} (24. Nxe8 Rxe8 25. f5 Ng5 $18) (24. f5 $18 Ng5 25. Nxe8 Rxe8 26. Qe3 Bxe2 (26... Qxb2 $2 27. e6 $18) 27. Qxe2 Qc5+ 28. Kh2 Rxe5 29. Qg4) 24... Kg8 $16 {[%emt 0:00:20]} 25. f5 $1 {[%emt 0:00:29] The board is on fire.} ({Much less strong is} 25. Nf6+ $6 Kf8 $18) 25... Ng5 {[%emt 0:08:07]} 26. Nxg5 {[%emt 0:00:06]} hxg5 {[%emt 0:00:50]} 27. e6 $1 $40 {[%emt 0:03:59][%cal Be5e6,Be6d7][%mdl 160] Black is in trouble.} Re7 {[%emt 0:06:49]} 28. Qxg5 {[%emt 0:02:04] White has more active pieces.} (28. Qc7 {with more complications.} Rae8 29. f6 gxf6 30. Rxf6 fxe6 31. Rxe6 Kf7 32. Qxc6 Rxd7 33. Qxd7+ Re7 34. Rxe7+ Qxe7 35. Qd5+) 28... f6 $2 {[%emt 0:12:33]} ({Better is} 28... Qc5+ $1 $14 29. Kh1 f6) 29. Qd2 {[%emt 0:00:19]} Qc5+ {[%emt 0:00:54] [#]} 30. Kh1 {[%emt 0:04:59]} (30. Rd4 $1 $18) 30... Rxd7 $14 {[%emt 0:01:10]} 31. exd7 {[%emt 0:03:15]} Rd8 {[%emt 0:00:56]} 32. Rd1 $1 {[%emt 0:00:20][%cal Bf1d1,Bd1d2,Bd2d1,Bd1a1][%mdl 32] Threatens to win with Nf4.} Qxf5 {[%emt 0:00:43]} 33. Nf4 {[%emt 0:03:56][%cal Be2f4,Bf4e6,Be6d8][%mdl 32] Strongly threatening Qd6.} c5 $2 {[%emt 0:05:28][%mdl 8192]} (33... Kf7 $1 $14) 34. Qd6 {[%emt 0:00:58]} Qc2 $2 {[%emt 0:05:08]} (34... Rxd7 35. Qxd7 Qxf4 36. Qe8+ (36. Qxa7 Be2 $18) 36... Kh7 37. Qh5+ Qh6 38. Qf5+ Qg6 39. Qxg6+ Kxg6) 35. Ne6 $18 {[%emt 0:01:01] White is clearly winning.} Bb7 {[%emt 0:01:09]} 36. Rd2 {[%emt 0:00:09]} (36. Nxd8 $2 Qxg2#) 36... Qf5 {[%emt 0:01:56]} 37. Nxd8 {[%emt 0:00:53]} Qxh3+ {[%emt 0:00:06]} 38. Qh2 {[%emt 0:01:16]} Qe3 {[%emt 0:00:06] [#]} 39. Rd1 $1 {[%emt 0:00:35]} (39. Nxb7 Qe1+ 40. Qg1 Qh4+ 41. Qh2 Qe1+ 42. Qg1 Qh4+ 43. Qh2 Qe1+ $11) 39... Qe2 {[%emt 0:00:14]} 40. Ra1 {[%emt 0:00:25] Weighted Error Value: White=0.36/Black=0.57.  Loses game:     	---       	Black=2      Missed win:     	White=1     	---        Mistake:       	White=1     	Black=4      Inaccurate:     	White=3     	Black=2      OK:         	White=8     	Black=10     Best:        	White=2     	Black=3      Strong:       	White=5     	---} ({Inferior is} 40. Nxb7 Qxd1+ 41. Qg1 Qxd7 $11) 1-0

[Event "One Short Week GM-A 12-2024"]
[Site "Budapest"]
[Date "2024.12.16"]
[Round "1.4"]
[White "Maerevoet, Sim"]
[Black "Lu, Miaoyi"]
[Result "1/2-1/2"]
[ECO "E32"]
[WhiteElo "2421"]
[BlackElo "2441"]
[Annotator "RC"]
[PlyCount "128"]
[EventDate "2024.12.15"]
[EventType "tourn"]
[EventCountry "HUN"]
[SourceTitle "playchess.com"]
[Source "ChessBase"]
[SourceQuality "1"]
[TimeControl "5400+30"]

1. d4 {[%emt 0:00:03]} Nf6 {[%emt 0:00:01]} 2. c4 {[%emt 0:00:17]} e6 {[%emt 0:00:02]} 3. Nc3 {[%emt 0:00:16]} Bb4 {[%emt 0:00:04]} 4. Qc2 {[%emt 0:00:19]} O-O {[%emt 0:00:51]} 5. Nf3 {[%emt 0:00:35]} d5 {[%emt 0:00:45]} 6. a3 {[%emt 0:00:14]} Bxc3+ {[%emt 0:01:33]} 7. Qxc3 {[%emt 0:00:07]} dxc4 {[%emt 0:00:08]} 8. Qxc4 {[%emt 0:00:11]} b6 {[%emt 0:00:01]} 9. Bg5 {[%emt 0:00:22]} Ba6 {[%emt 0:00:23]} 10. Qc1 {[%emt 0:00:25]} Nbd7 {[%emt 0:10:07]} 11. e4 {[%emt 0:05:17]} Qc8 {[%emt 0:21:36]} 12. Bxa6 {[%emt 0:02:18]} Qxa6 {[%emt 0:00:01]} 13. Qc6 {[%emt 0:00:13]} Rac8 {[%emt 0:13:18]} 14. O-O-O {[%emt 0:05:57]} Nb8 {[%emt 0:02:56]} 15. Qc2 {[%emt 0:00:23]} c5 {[%emt 0:01:22]} 16. d5 {[%emt 0:01:14]} Nfd7 {[%emt 0:13:56]} 17. dxe6 {[%emt 0:30:00]} fxe6 {[%emt 0:00:02]} 18. Kb1 {[%emt 0:01:03]} c4 {[%emt 0:06:50]} 19. Be7 {[%emt 0:01:47]} Rfe8 {[%emt 0:02:53]} 20. Bb4 {[%emt 0:01:58]} Nc5 {[%emt 0:06:58]} 21. Ne5 {[%emt 0:03:08]} Na4 {[%emt 0:03:27]} 22. Rd6 {[%emt 0:10:54]} Qb5 {[%emt 0:01:16]} 23. Bc3 {[%emt 0:04:04]} Qc5 {[%emt 0:00:47]} 24. Rd2 {[%emt 0:01:42]} b5 {[%emt 0:03:07]} 25. Rhd1 {[%emt 0:01:10]} a5 {[%emt 0:02:15]} 26. Nd7 {[%emt 0:12:29]} Nxc3+ 27. Qxc3 {[%emt 0:00:48]} b4 {[%emt 0:02:48]} 28. Qg3 {[%emt 0:02:36]} Nxd7 {[%emt 0:03:07]} 29. Rxd7 {[%emt 0:00:02]} Qf8 {[%emt 0:00:18]} 30. axb4 {[%emt 0:03:23]} axb4 {[%emt 0:00:04]} 31. Qe5 {[%emt 0:01:07]} Qf6 {[%emt 0:04:09]} 32. Qxf6 {[%emt 0:00:49]} gxf6 {[%emt 0:00:01]} 33. Rb7 {[%emt 0:00:48]} Rb8 {[%emt 0:00:34]} 34. Rxb8 {[%emt 0:05:17]} Rxb8 {[%emt 0:00:02]} 35. Kc2 {[%emt 0:00:07]} Rc8 {[%emt 0:01:36]} 36. Rd6 {[%emt 0:00:44]} Kf7 {[%emt 0:00:08]} 37. Rd7+ {[%emt 0:01:05]} Kg6 {[%emt 0:00:03]} 38. Rb7 {[%emt 0:00:05]} c3 {[%emt 0:01:03]} 39. b3 {[%emt 0:00:49]} Rd8 {[%emt 0:00:19]} 40. Rxb4 {[%emt 0:00:04]} Rd2+ {[%emt 0:00:05]} 41. Kxc3 {[%emt 0:00:02]} Rxf2 {[%emt 0:00:04]} 42. Rb8 {[%emt 0:01:49]} Kg7 {[%emt 0:01:11]} 43. Rb7+ {[%emt 0:01:55]} Kg6 {[%emt 0:00:03]} 44. Rb8 {[%emt 0:03:33]} Kg7 {[%emt 0:00:02]} 45. Rd8 {[%emt 0:00:46]} Rxg2 {[%emt 0:01:19]} 46. Rd2 {[%emt 0:00:24]} Rg4 {[%emt 0:01:00]} 47. Re2 {[%emt 0:00:44]} f5 {[%emt 0:00:35]} 48. exf5 {[%emt 0:00:07]} exf5 {[%emt 0:00:03]} 49. b4 {[%emt 0:00:09]} Rg1 {[%emt 0:00:57]} 50. b5 {[%emt 0:00:19]} Kf6 {[%emt 0:00:40]} 51. b6 {[%emt 0:00:38]} f4 {[%emt 0:00:26]} 52. b7 {[%emt 0:00:58]} Rg8 {[%emt 0:00:04]} 53. Rb2 {[%emt 0:00:14]} Rb8 {[%emt 0:00:04]} 54. Kd4 {[%emt 0:00:07]} Kf5 {[%emt 0:00:03]} 55. Rb3 {[%emt 0:00:35]} Kg4 {[%emt 0:01:00]} 56. h3+ {[%emt 0:00:13]} Kh4 {[%emt 0:00:08]} 57. Ke4 {[%emt 0:00:44]} f3 {[%emt 0:00:06]} 58. Kxf3 {[%emt 0:00:07]} Kxh3 {[%emt 0:00:05]} 59. Kf4+ {[%emt 0:00:33]} Kg2 {[%emt 0:02:37]} 60. Rg3+ {[%emt 0:01:42]} Kf2 {[%emt 0:00:06]} 61. Rg7 {[%emt 0:00:09]} h5 {[%emt 0:00:24]} 62. Kg5 {[%emt 0:00:57]} Ke3 {[%emt 0:00:20]} 63. Kxh5 {[%emt 0:00:31]} Kd4 {[%emt 0:00:03]} 64. Kg5 Ke5 1/2-1/2

[Event "One Short Week GM-A 12-2024"]
[Site "Budapest"]
[Date "2024.12.16"]
[Round "1.5"]
[White "Lee, Junhyeok"]
[Black "Mahitosh Dey"]
[Result "1-0"]
[ECO "D37"]
[WhiteElo "2426"]
[BlackElo "2245"]
[Annotator "RC"]
[PlyCount "115"]
[EventDate "2024.12.15"]
[EventType "tourn"]
[EventCountry "HUN"]
[SourceTitle "playchess.com"]
[Source "ChessBase"]
[SourceQuality "1"]
[TimeControl "5400+30"]

1. d4 {[%emt 0:00:03]} d5 {[%emt 0:00:59]} 2. c4 {[%emt 0:00:09]} e6 {[%emt 0:00:04]} 3. Nc3 {[%emt 0:00:39]} Nf6 {[%emt 0:00:05]} 4. Nf3 {[%emt 0:00:16]} Be7 {[%emt 0:00:07]} 5. Bg5 {[%emt 0:00:09]} h6 {[%emt 0:00:29]} 6. Bxf6 {[%emt 0:00:08]} Bxf6 {[%emt 0:00:04]} 7. e3 {[%emt 0:00:06]} O-O {[%emt 0:00:30]} 8. Rc1 {[%emt 0:00:08]} c6 {[%emt 0:00:02]} 9. h4 {[%emt 0:00:10]} g6 {[%emt 0:09:54]} 10. h5 {[%emt 0:00:28]} g5 {[%emt 0:00:05]} 11. Bd3 {[%emt 0:00:13]} Bg7 {[%emt 0:00:06]} 12. Bb1 {[%emt 0:01:14]} Nd7 {[%emt 0:01:53]} 13. cxd5 {[%emt 0:01:16]} exd5 {[%emt 0:00:51]} 14. Ne2 {[%emt 0:02:22]} Nf6 {[%emt 0:09:03]} 15. Ne5 {[%emt 0:01:57]} Ne4 {[%emt 0:02:07]} 16. O-O {[%emt 0:02:54]} f6 {[%emt 0:18:09]} 17. Ng6 {[%emt 0:04:29]} Re8 {[%emt 0:02:53]} 18. Bxe4 {[%emt 0:04:06]} Rxe4 {[%emt 0:10:36]} 19. Qd3 {[%emt 0:06:59]} Re8 {[%emt 0:08:38]} 20. Ng3 {[%emt 0:00:38]} Qd6 {[%emt 0:05:49]} 21. Rfe1 {[%emt 0:05:10]} Bg4 {[%emt 0:04:58]} 22. Qb3 {[%emt 0:03:27]} Qd7 {[%emt 0:01:51]} 23. f3 {[%emt 0:03:40]} Be6 {[%emt 0:00:14]} 24. Qd3 {[%emt 0:00:29]} Rad8 {[%emt 0:02:06]} 25. a3 {[%emt 0:04:12]} Qd6 {[%emt 0:02:40]} 26. Nf5 {[%emt 0:02:14]} Bxf5 {[%emt 0:00:07]} 27. Qxf5 {[%emt 0:00:03]} Qd7 {[%emt 0:00:05]} 28. g4 {[%emt 0:02:20]} Re6 {[%emt 0:01:08]} 29. Rcd1 {[%emt 0:01:29]} Rde8 {[%emt 0:04:29]} 30. Kg2 {[%emt 0:03:39]} Qc7 {[%emt 0:02:12]} 31. Qd3 {[%emt 0:01:48]} Qb6 {[%emt 0:00:45]} 32. Re2 {[%emt 0:01:25]} a6 {[%emt 0:00:06]} 33. a4 {[%emt 0:04:03]} Qb4 {[%emt 0:01:22]} 34. b3 {[%emt 0:00:13]} Kf7 {[%emt 0:05:37]} 35. Rde1 {[%emt 0:01:03]} Kg8 {[%emt 0:00:09]} 36. e4 {[%emt 0:09:44]} dxe4 {[%emt 0:00:06]} 37. fxe4 {[%emt 0:00:42]} Rd8 {[%emt 0:01:27]} 38. Rd1 {[%emt 0:00:28]} Rde8 {[%emt 0:04:29]} 39. Re3 {[%emt 0:03:47]} b5 {[%emt 0:01:01]} 40. axb5 {[%emt 0:00:24]} axb5 {[%emt 0:00:10]} 41. Kf3 {[%emt 0:03:09]} Qd6 {[%emt 0:00:31]} 42. Rd2 {[%emt 0:01:58]} Qb4 {[%emt 0:00:58]} 43. Rde2 {[%emt 0:01:19]} Qd6 {[%emt 0:01:08]} 44. Kg2 {[%emt 0:02:11]} Qb4 {[%emt 0:00:13]} 45. Kh3 {[%emt 0:00:30]} Rd6 {[%emt 0:00:38]} 46. d5 {[%emt 0:00:36]} Rd7 {[%emt 0:00:17]} 47. Qc2 {[%emt 0:01:25]} c5 {[%emt 0:01:02]} 48. e5 {[%emt 0:05:23]} fxe5 {[%emt 0:01:25]} 49. Nxe5 {[%emt 0:00:17]} Qd4 {[%emt 0:00:29]} 50. Rd3 {[%emt 0:03:25]} Qg1 {[%emt 0:00:38]} 51. Rd1 {[%emt 0:00:37]} Qxd1 {[%emt 0:00:23]} 52. Qxd1 {[%emt 0:00:04]} Rxe5 {[%emt 0:00:04]} 53. Rxe5 {[%emt 0:00:07]} Bxe5 {[%emt 0:00:03]} 54. Qe2 {[%emt 0:00:42]} Re7 {[%emt 0:00:05]} 55. Qxb5 {[%emt 0:00:53]} Bf4 {[%emt 0:00:10]} 56. Kg2 {[%emt 0:01:26]} Rc7 {[%emt 0:00:59]} 57. Qb6 {[%emt 0:00:42]} Be5 {[%emt 0:00:43]} 58. Qe6+ {[%emt 0:00:06]} 1-0

[Event "One Short Week GM-A 12-2024"]
[Site "Budapest"]
[Date "2024.12.16"]
[Round "2.1"]
[White "Paszewski, Mateusz"]
[Black "Mahitosh Dey"]
[Result "1/2-1/2"]
[ECO "A06"]
[WhiteElo "2344"]
[BlackElo "2245"]
[Annotator "RC"]
[PlyCount "82"]
[EventDate "2024.12.15"]
[EventType "tourn"]
[EventCountry "HUN"]
[SourceTitle "playchess.com"]
[Source "ChessBase"]
[SourceQuality "1"]
[TimeControl "5400+30"]

1. Nf3 {[%emt 0:00:03]} d5 {[%emt 0:14:24]} 2. e3 {[%emt 0:00:24]} Nf6 {[%emt 0:00:10]} 3. c4 {[%emt 0:00:04]} e6 {[%emt 0:00:15]} 4. Nc3 {[%emt 0:00:05]} Be7 {[%emt 0:00:37]} 5. b3 {[%emt 0:00:05]} O-O {[%emt 0:00:09]} 6. Bb2 {[%emt 0:00:03]} b6 {[%emt 0:00:46]} 7. cxd5 {[%emt 0:02:30]} exd5 {[%emt 0:00:06]} 8. d4 {[%emt 0:00:10]} Bb7 {[%emt 0:01:33]} 9. Bd3 {[%emt 0:01:53]} Bd6 {[%emt 0:00:09]} 10. O-O {[%emt 0:01:01]} a6 {[%emt 0:00:12]} 11. Ne2 {[%emt 0:03:01]} Nbd7 {[%emt 0:04:11]} 12. Ng3 {[%emt 0:10:31]} Re8 {[%emt 0:01:37]} 13. Nf5 {[%emt 0:02:27]} Bf8 {[%emt 0:00:10]} 14. Ne5 {[%emt 0:01:54]} g6 {[%emt 0:01:32]} 15. Ng3 {[%emt 0:02:31]} Bg7 {[%emt 0:20:59]} 16. f4 {[%emt 0:26:20]} Qe7 {[%emt 0:02:29]} 17. Qf3 {[%emt 0:07:35]} Nxe5 {[%emt 0:03:47]} 18. fxe5 {[%emt 0:00:46]} Nd7 {[%emt 0:00:06]} 19. e4 {[%emt 0:18:13]} Qe6 {[%emt 0:02:26]} 20. exd5 {[%emt 0:08:00]} Bxd5 {[%emt 0:00:05]} 21. Be4 {[%emt 0:00:03]} c6 {[%emt 0:00:07]} 22. Bxd5 {[%emt 0:02:24]} Qxd5 {[%emt 0:00:05]} 23. Qxd5 {[%emt 0:00:43]} cxd5 {[%emt 0:00:04]} 24. Ne2 {[%emt 0:00:14]} Nf8 {[%emt 0:01:57]} 25. Rac1 {[%emt 0:05:02]} f6 {[%emt 0:05:25]} 26. Nc3 {[%emt 0:05:07]} fxe5 {[%emt 0:00:22]} 27. Nxd5 {[%emt 0:00:03]} Rad8 {[%emt 0:00:19]} 28. Nc7 {[%emt 0:00:42]} Re7 {[%emt 0:00:05]} 29. Ba3 {[%emt 0:02:14]} Red7 {[%emt 0:00:13]} 30. d5 {[%emt 0:00:46]} Bh6 {[%emt 0:00:19]} 31. Rc6 {[%emt 0:00:22]} Rc8 {[%emt 0:00:32]} 32. Ne6 {[%emt 0:00:38]} Re8 {[%emt 0:02:56]} 33. Bxf8 Bxf8 {[%emt 0:00:06]} 34. Rxf8+ {[%emt 0:00:25]} Rxf8 {[%emt 0:00:04]} 35. Nxf8 {[%emt 0:00:02]} Kxf8 {[%emt 0:00:04]} 36. d6 {[%emt 0:01:24]} b5 {[%emt 0:00:51]} 37. Kf2 {[%emt 0:00:33]} a5 {[%emt 0:00:10]} 38. Rb6 {[%emt 0:00:34]} b4 {[%emt 0:01:17]} 39. Rb5 {[%emt 0:00:24]} Rxd6 {[%emt 0:00:05]} 40. Rxe5 {[%emt 0:00:05]} Rd2+ {[%emt 0:00:29]} 41. Re2 {[%emt 0:00:06]} Rd5 {[%emt 0:00:37]} 1/2-1/2

[Event "One Short Week GM-A 12-2024"]
[Site "Budapest"]
[Date "2024.12.16"]
[Round "2.2"]
[White "Lu, Miaoyi"]
[Black "Lee, Junhyeok"]
[Result "0-1"]
[ECO "E92"]
[WhiteElo "2441"]
[BlackElo "2426"]
[Annotator "RC"]
[PlyCount "68"]
[EventDate "2024.12.15"]
[EventType "tourn"]
[EventCountry "HUN"]
[SourceTitle "playchess.com"]
[Source "ChessBase"]
[SourceQuality "1"]
[TimeControl "5400+30"]

1. Nf3 {[%emt 0:00:02]} Nf6 {[%emt 0:03:45]} 2. c4 {[%emt 0:00:02]} g6 {[%emt 0:00:15]} 3. Nc3 {[%emt 0:00:05]} Bg7 {[%emt 0:00:05]} 4. d4 {[%emt 0:00:04]} d6 {[%emt 0:00:14]} 5. e4 {[%emt 0:00:04]} O-O {[%emt 0:00:20]} 6. Be2 {[%emt 0:00:02]} e5 {[%emt 0:02:11]} 7. d5 {[%emt 0:00:03]} Na6 {[%emt 0:04:03]} 8. Nd2 {[%emt 0:00:26]} Nd7 {[%emt 0:03:05]} 9. h4 {[%emt 0:03:48]} f5 {[%emt 0:01:42]} 10. h5 {[%emt 0:00:36]} gxh5 {[%emt 0:02:29]} 11. exf5 {[%emt 0:23:27]} Ndc5 {[%emt 0:01:41]} 12. f6 {[%emt 0:13:38]} Qxf6 {[%emt 0:02:23]} 13. Nce4 {[%emt 0:08:27]} Qg6 {[%emt 0:04:11]} 14. Ng3 {[%emt 0:06:40]} Nb4 {[%emt 0:16:25]} 15. O-O {[%emt 0:04:01]} h4 {[%emt 0:00:16]} 16. Bh5 {[%emt 0:06:33]} Qc2 {[%emt 0:01:03]} 17. Ne2 {[%emt 0:00:30]} Bf5 {[%emt 0:19:54]} 18. a3 {[%emt 0:08:07]} Qxd1 {[%emt 0:00:09]} 19. Rxd1 {[%emt 0:00:02]} Nbd3 {[%emt 0:01:46]} 20. f3 {[%emt 0:13:16]} Nxc1 21. Nxc1 {[%emt 0:03:32]} Bh6 {[%emt 0:13:54]} 22. Nf1 {[%emt 0:01:23]} a5 {[%emt 0:02:26]} 23. Bg4 {[%emt 0:05:55]} Bxg4 {[%emt 0:02:12]} 24. fxg4 {[%emt 0:00:02]} Rf4 {[%emt 0:00:11]} 25. Nd3 {[%emt 0:01:31]} Rxc4 {[%emt 0:01:36]} 26. Nxc5 {[%emt 0:00:28]} Rxc5 {[%emt 0:00:05]} 27. Rd3 {[%emt 0:00:37]} Rc2 {[%emt 0:02:17]} 28. Rb1 {[%emt 0:00:33]} Rf8 {[%emt 0:00:49]} 29. Rc3 {[%emt 0:00:28]} Re2 {[%emt 0:02:10]} 30. Rf3 {[%emt 0:00:28]} Rxf3 {[%emt 0:00:55]} 31. gxf3 {[%emt 0:00:02]} h3 {[%emt 0:00:39]} 32. b4 {[%emt 0:00:50]} a4 {[%emt 0:00:17]} 33. b5 {[%emt 0:00:14]} Bf4 {[%emt 0:01:36]} 34. Rb4 {[%emt 0:00:57]} h2+ {[%emt 0:00:32]} 0-1

[Event "One Short Week GM-A 12-2024"]
[Site "Budapest"]
[Date "2024.12.16"]
[Round "2.3"]
[White "Plat, Vojtech"]
[Black "Maerevoet, Sim"]
[Result "1/2-1/2"]
[ECO "D05"]
[WhiteElo "2457"]
[BlackElo "2421"]
[Annotator "RC"]
[PlyCount "21"]
[EventDate "2024.12.15"]
[EventType "tourn"]
[EventCountry "HUN"]
[SourceTitle "playchess.com"]
[Source "ChessBase"]
[SourceQuality "1"]
[TimeControl "5400+30"]

1. d4 {[%emt 0:00:38]} Nf6 {[%emt 0:00:07]} 2. Nf3 {[%emt 0:00:16]} d5 {[%emt 0:01:04]} 3. e3 {[%emt 0:00:08]} e6 {[%emt 0:03:23]} 4. c4 {[%emt 0:00:23]} b6 {[%emt 0:01:38]} 5. Nc3 {[%emt 0:00:45]} Bb7 {[%emt 0:05:13]} 6. cxd5 {[%emt 0:03:35]} exd5 {[%emt 0:01:49]} 7. Ne5 {[%emt 0:01:13]} Bd6 {[%emt 0:02:33]} 8. f4 {[%emt 0:00:11]} O-O {[%emt 0:00:28]} 9. Bd3 {[%emt 0:00:05]} c5 {[%emt 0:03:09]} 10. O-O {[%emt 0:00:33]} Nc6 {[%emt 0:03:12]} 11. Bd2 {[%emt 0:07:03]} 1/2-1/2